[Event "Late-Titled-Tuesday-Blitz-March-19-2024"]
[Site "Chess.com"]
[Date "2024.03.19"]
[Round "6"]
[White "Mikhail_Bryakin"]
[Black "FaustinoOro"]
[Result "1-0"]
[WhiteElo "2715"]
[BlackElo "2856"]
[TimeControl "180+1"]
[EndTime "15:04:06 PDT"]
[Termination "Mikhail_Bryakin won by resignation"]

1. c4 {[%clk 0:03:00.2]} 1... e5 {[%clk 0:02:53.1]} 2. Nc3 {[%clk 0:02:57.5]}
2... Nf6 {[%clk 0:02:53.2]} 3. g3 {[%clk 0:02:56.7]} 3... Bb4 {[%clk 0:02:52.9]}
4. Bg2 {[%clk 0:02:56.3]} 4... O-O {[%clk 0:02:53.4]} 5. e3 {[%clk 0:02:53.5]}
5... d6 {[%clk 0:02:51]} 6. Nge2 {[%clk 0:02:53.4]} 6... c6 {[%clk 0:02:50.6]}
7. a3 {[%clk 0:02:52.4]} 7... Ba5 {[%clk 0:02:49.5]} 8. O-O {[%clk 0:02:50.1]}
8... Re8 {[%clk 0:02:48.8]} 9. d4 {[%clk 0:02:49.1]} 9... Nbd7 {[%clk 0:02:41]}
10. d5 {[%clk 0:02:45.8]} 10... cxd5 {[%clk 0:02:33.9]} 11. cxd5 {[%clk
0:02:40.1]} 11... Nf8 {[%clk 0:02:25.5]} 12. b4 {[%clk 0:02:39.8]} 12... Bc7
{[%clk 0:02:25.3]} 13. h3 {[%clk 0:02:34.2]} 13... h6 {[%clk 0:02:24.4]} 14. e4
{[%clk 0:02:32.5]} 14... Ng6 {[%clk 0:02:18.2]} 15. Be3 {[%clk 0:02:32.6]} 15...
Bb6 {[%clk 0:02:16.7]} 16. Qd2 {[%clk 0:02:28.7]} 16... Bxe3 {[%clk 0:02:14.7]}
17. Qxe3 {[%clk 0:02:29.3]} 17... Nh7 {[%clk 0:02:11.1]} 18. Rfc1 {[%clk
0:02:27]} 18... Bd7 {[%clk 0:02:01.9]} 19. a4 {[%clk 0:02:21.9]} 19... a6 {[%clk
0:01:48.5]} 20. a5 {[%clk 0:02:19.9]} 20... Rc8 {[%clk 0:01:46.6]} 21. Na4
{[%clk 0:02:19]} 21... Rxc1+ {[%clk 0:01:45.6]} 22. Qxc1 {[%clk 0:02:16.5]}
22... Bxa4 {[%clk 0:01:42.7]} 23. Rxa4 {[%clk 0:02:17.4]} 23... Qd7 {[%clk
0:01:43]} 24. Ra2 {[%clk 0:02:14.3]} 24... Rc8 {[%clk 0:01:33.9]} 25. Rc2 {[%clk
0:02:13.7]} 25... Rxc2 {[%clk 0:01:33.3]} 26. Qxc2 {[%clk 0:02:14.6]} 26... Qb5
{[%clk 0:01:28.7]} 27. Qd2 {[%clk 0:02:05.1]} 27... Qc4 {[%clk 0:01:24.8]} 28.
h4 {[%clk 0:02:03.9]} 28... Nf6 {[%clk 0:01:24.7]} 29. f3 {[%clk 0:02:01.2]}
29... Ne7 {[%clk 0:01:17.5]} 30. Bf1 {[%clk 0:01:59.9]} 30... Nd7 {[%clk
0:00:56.7]} 31. Nc1 {[%clk 0:01:56.5]} 31... Qc7 {[%clk 0:00:53.4]} 32. Nb3
{[%clk 0:01:51.2]} 32... f5 {[%clk 0:00:52.1]} 33. Qc1 {[%clk 0:01:44.1]} 33...
Qd8 {[%clk 0:00:46.3]} 34. Nd2 {[%clk 0:01:41.2]} 34... Nf6 {[%clk 0:00:46]} 35.
Qc4 {[%clk 0:01:37.7]} 35... fxe4 {[%clk 0:00:45.6]} 36. fxe4 {[%clk 0:01:37.7]}
36... Qd7 {[%clk 0:00:44.9]} 37. Qe2 {[%clk 0:01:35.7]} 37... Qa4 {[%clk
0:00:40.8]} 38. Qc4 {[%clk 0:01:31.2]} 38... Qd1 {[%clk 0:00:40.1]} 39. Qd3
{[%clk 0:01:25.8]} 39... Nxe4 {[%clk 0:00:34.3]} 40. Nxe4 {[%clk 0:01:21.6]}
40... Qxd3 {[%clk 0:00:20]} 41. Bxd3 {[%clk 0:01:22.5]} 41... Nxd5 {[%clk
0:00:20.6]} 1-0

[Event "Late-Titled-Tuesday-Blitz-March-19-2024"]
[Site "Chess.com"]
[Date "2024.03.19"]
[Round "6"]
[White "Truequitos"]
[Black "Tugrik1969"]
[Result "1-0"]
[WhiteElo "2555"]
[BlackElo "2392"]
[TimeControl "180+1"]
[EndTime "15:04:06 PDT"]
[Termination "Truequitos won on time"]

1. d4 {[%clk 0:03:00.9]} 1... d5 {[%clk 0:02:59.8]} 2. Bf4 {[%clk 0:03:00.1]}
2... c5 {[%clk 0:02:58.7]} 3. e4 {[%clk 0:03:00]} 3... e6 {[%clk 0:02:51]} 4.
exd5 {[%clk 0:02:55.3]} 4... exd5 {[%clk 0:02:50.6]} 5. Nc3 {[%clk 0:02:53.6]}
5... Bd6 {[%clk 0:02:19.8]} 6. Bxd6 {[%clk 0:02:26.7]} 6... Qxd6 {[%clk
0:02:20.7]} 7. dxc5 {[%clk 0:02:27.3]} 7... Qxc5 {[%clk 0:02:15.2]} 8. Qxd5
{[%clk 0:02:26.3]} 8... Qe7+ {[%clk 0:02:03.9]} 9. Qe4 {[%clk 0:02:19.4]} 9...
Be6 {[%clk 0:01:59.6]} 10. Bb5+ {[%clk 0:02:16.6]} 10... Nd7 {[%clk 0:01:34.7]}
11. O-O-O {[%clk 0:02:10]} 11... Nf6 {[%clk 0:01:34.6]} 12. Bxd7+ {[%clk
0:01:49.1]} 12... Nxd7 {[%clk 0:01:21.7]} 13. Nf3 {[%clk 0:01:45.2]} 13... O-O
{[%clk 0:01:15.7]} 14. Nd4 {[%clk 0:01:43.5]} 14... Nc5 {[%clk 0:01:15.4]} 15.
Qe5 {[%clk 0:01:38.1]} 15... Rac8 {[%clk 0:01:11.4]} 16. Nxe6 {[%clk 0:01:30.2]}
16... Nxe6 {[%clk 0:01:10.4]} 17. Kb1 {[%clk 0:01:25.9]} 17... Qb4 {[%clk
0:01:04.7]} 18. Nd5 {[%clk 0:01:23]} 18... Qc5 {[%clk 0:00:57.2]} 19. c3 {[%clk
0:01:19.6]} 19... Rfe8 {[%clk 0:00:56.7]} 20. Rhe1 {[%clk 0:01:12.6]} 20... Nc7
{[%clk 0:00:46.9]} 21. Ne7+ {[%clk 0:01:05.1]} 1-0

[Event "Late-Titled-Tuesday-Blitz-March-19-2024"]
[Site "Chess.com"]
[Date "2024.03.19"]
[Round "6"]
[White "ninguno46"]
[Black "ChempionBg"]
[Result "1-0"]
[WhiteElo "2544"]
[BlackElo "2345"]
[TimeControl "180+1"]
[EndTime "15:04:11 PDT"]
[Termination "ninguno46 won on time"]

1. e4 {[%clk 0:02:58.1]} 1... c5 {[%clk 0:02:55.6]} 2. Nc3 {[%clk 0:02:57.8]}
2... Nc6 {[%clk 0:02:55]} 3. f4 {[%clk 0:02:57.7]} 3... g6 {[%clk 0:02:54.6]} 4.
Nf3 {[%clk 0:02:58.2]} 4... Bg7 {[%clk 0:02:54.7]} 5. Bb5 {[%clk 0:02:58.8]}
5... e6 {[%clk 0:02:52.2]} 6. Bxc6 {[%clk 0:02:58.5]} 6... bxc6 {[%clk
0:02:46.6]} 7. d3 {[%clk 0:02:57.7]} 7... Ne7 {[%clk 0:02:46.3]} 8. O-O {[%clk
0:02:55.6]} 8... d5 {[%clk 0:02:42.8]} 9. e5 {[%clk 0:02:55.1]} 9... O-O {[%clk
0:02:42.6]} 10. Bd2 {[%clk 0:02:51.3]} 10... Rb8 {[%clk 0:02:40.4]} 11. Rb1
{[%clk 0:02:49.5]} 11... Nf5 {[%clk 0:02:34.1]} 12. Na4 {[%clk 0:02:47.4]} 12...
Qe7 {[%clk 0:02:29.1]} 13. Qe2 {[%clk 0:02:32.4]} 13... Ba6 {[%clk 0:02:27.3]}
14. c4 {[%clk 0:02:30]} 14... Nd4 {[%clk 0:02:16.9]} 15. Nxd4 {[%clk 0:02:29.3]}
15... cxd4 {[%clk 0:02:17.2]} 16. b3 {[%clk 0:02:28.2]} 16... dxc4 {[%clk
0:02:12.1]} 17. dxc4 {[%clk 0:02:24.3]} 17... c5 {[%clk 0:02:09.7]} 18. Bc1
{[%clk 0:02:21.8]} 18... Bb7 {[%clk 0:02:06.4]} 19. Ba3 {[%clk 0:02:21]} 19...
Rfc8 {[%clk 0:02:06.5]} 20. Rbd1 {[%clk 0:02:19.7]} 20... Bf8 {[%clk 0:02:03.1]}
21. Rxd4 {[%clk 0:02:18.1]} 21... Qc7 {[%clk 0:01:37.8]} 22. Rd3 {[%clk
0:02:17.2]} 22... Qc6 {[%clk 0:01:30.9]} 23. Rg3 {[%clk 0:02:16.3]} 23... Rd8
{[%clk 0:01:28.7]} 24. Nc3 {[%clk 0:01:59.7]} 24... Rd7 {[%clk 0:01:22.3]} 25.
f5 {[%clk 0:01:53.7]} 25... Rbd8 {[%clk 0:01:20.7]} 26. fxg6 {[%clk 0:01:51]}
26... hxg6 {[%clk 0:01:19.2]} 27. Bc1 {[%clk 0:01:48.5]} 27... Rd3 {[%clk
0:01:07.7]} 28. Nd5 {[%clk 0:01:40.4]} 28... Rxg3 {[%clk 0:00:54.7]} 29. Nf6+
{[%clk 0:01:40.3]} 29... Kg7 {[%clk 0:00:51.7]} 30. hxg3 {[%clk 0:01:40.4]}
30... Rd3 {[%clk 0:00:34.7]} 31. Bf4 {[%clk 0:01:33]} 31... g5 {[%clk
0:00:20.1]} 32. Rf2 {[%clk 0:01:32.3]} 32... Rc3 {[%clk 0:00:05.6]} 33. Qh5
{[%clk 0:01:25.7]} 1-0

[Event "Late-Titled-Tuesday-Blitz-March-19-2024"]
[Site "Chess.com"]
[Date "2024.03.19"]
[Round "6"]
[White "WilsonPalencia21"]
[Black "Vaathi_Coming"]
[Result "0-1"]
[WhiteElo "2616"]
[BlackElo "2893"]
[TimeControl "180+1"]
[EndTime "15:04:12 PDT"]
[Termination "Vaathi_Coming won on time"]

1. d4 {[%clk 0:03:00.9]} 1... Nf6 {[%clk 0:02:59.2]} 2. c4 {[%clk 0:03:00.6]}
2... g6 {[%clk 0:02:59.5]} 3. Nf3 {[%clk 0:02:59.9]} 3... Bg7 {[%clk 0:02:58.4]}
4. Nc3 {[%clk 0:02:59.7]} 4... O-O {[%clk 0:02:58.9]} 5. e4 {[%clk 0:02:58.9]}
5... c6 {[%clk 0:02:58.2]} 6. e5 {[%clk 0:02:57.4]} 6... Ne8 {[%clk 0:02:58.1]}
7. Be2 {[%clk 0:02:56.1]} 7... d6 {[%clk 0:02:58.4]} 8. exd6 {[%clk 0:02:53.7]}
8... Nxd6 {[%clk 0:02:57.6]} 9. h3 {[%clk 0:02:52.9]} 9... Nf5 {[%clk
0:02:57.1]} 10. d5 {[%clk 0:02:51.9]} 10... cxd5 {[%clk 0:02:57.4]} 11. Nxd5
{[%clk 0:02:50.9]} 11... Nc6 {[%clk 0:02:57.6]} 12. O-O {[%clk 0:02:50.1]} 12...
e6 {[%clk 0:02:46.4]} 13. Ne3 {[%clk 0:02:35]} 13... Nxe3 {[%clk 0:02:42.1]} 14.
Bxe3 {[%clk 0:02:32.2]} 14... Bxb2 {[%clk 0:02:41.6]} 15. Rb1 {[%clk 0:02:31.1]}
15... Bg7 {[%clk 0:02:37.7]} 16. Qa4 {[%clk 0:02:24.9]} 16... Qc7 {[%clk
0:02:33.5]} 17. Bc5 {[%clk 0:02:18.3]} 17... Rd8 {[%clk 0:02:31.7]} 18. Bb6
{[%clk 0:02:16.7]} 18... axb6 {[%clk 0:02:24.5]} 19. Qxa8 {[%clk 0:02:14.3]}
19... e5 {[%clk 0:02:05.2]} 20. Qa4 {[%clk 0:01:54.1]} 20... e4 {[%clk
0:02:03.2]} 21. Ng5 {[%clk 0:01:41.1]} 21... Qf4 {[%clk 0:02:01.9]} 22. Rb5
{[%clk 0:01:16.8]} 22... Nd4 {[%clk 0:01:43.7]} 23. Qd1 {[%clk 0:00:22.1]} 23...
Be5 {[%clk 0:01:28.5]} 24. Rxe5 {[%clk 0:00:06.5]} 24... Qxe5 {[%clk 0:01:29.4]}
25. h4 {[%clk 0:00:02.1]} 25... h6 {[%clk 0:01:20.6]} 26. Nh3 {[%clk 0:00:02.1]}
26... Bxh3 {[%clk 0:01:17.6]} 27. gxh3 {[%clk 0:00:01.8]} 27... Kg7 {[%clk
0:01:10.6]} 0-1

[Event "Late-Titled-Tuesday-Blitz-March-19-2024"]
[Site "Chess.com"]
[Date "2024.03.19"]
[Round "6"]
[White "GHANDEEVAM2003"]
[Black "GMKrikor"]
[Result "1-0"]
[WhiteElo "3038"]
[BlackElo "2820"]
[TimeControl "180+1"]
[EndTime "15:04:13 PDT"]
[Termination "GHANDEEVAM2003 won on time"]

1. e3 {[%clk 0:03:00.9]} 1... Nf6 {[%clk 0:02:59.3]} 2. c4 {[%clk 0:03:00.8]}
2... c5 {[%clk 0:02:55.8]} 3. b3 {[%clk 0:03:00.3]} 3... g6 {[%clk 0:02:49.5]}
4. Bb2 {[%clk 0:03:00.6]} 4... Bg7 {[%clk 0:02:50.2]} 5. Nf3 {[%clk 0:03:00.6]}
5... O-O {[%clk 0:02:50.3]} 6. Be2 {[%clk 0:03:00.7]} 6... d5 {[%clk 0:02:29.2]}
7. cxd5 {[%clk 0:02:59.9]} 7... Qxd5 {[%clk 0:02:30.1]} 8. Nc3 {[%clk
0:02:58.5]} 8... Qf5 {[%clk 0:02:30.3]} 9. O-O {[%clk 0:02:57.7]} 9... Rd8
{[%clk 0:02:29.7]} 10. Rc1 {[%clk 0:02:55.4]} 10... Nc6 {[%clk 0:02:24.7]} 11.
a3 {[%clk 0:02:47.2]} 11... b6 {[%clk 0:02:20.6]} 12. h3 {[%clk 0:02:41.7]}
12... Bb7 {[%clk 0:02:18.5]} 13. Re1 {[%clk 0:02:35.7]} 13... Rac8 {[%clk
0:02:17.1]} 14. d3 {[%clk 0:02:23.5]} 14... h6 {[%clk 0:02:12.2]} 15. Qc2 {[%clk
0:02:22]} 15... Nd4 {[%clk 0:01:44.9]} 16. exd4 {[%clk 0:02:22.9]} 16... cxd4
{[%clk 0:01:44.8]} 17. Nxd4 {[%clk 0:02:23.8]} 17... Rxd4 {[%clk 0:01:44]} 18.
Bf1 {[%clk 0:02:24.7]} 18... Qd7 {[%clk 0:01:38.5]} 19. Qe2 {[%clk 0:02:22.2]}
19... Rc7 {[%clk 0:00:48.2]} 20. Nb5 {[%clk 0:02:10.4]} 20... Rxc1 {[%clk
0:00:47.7]} 21. Rxc1 {[%clk 0:02:11.3]} 21... Rd5 {[%clk 0:00:41.5]} 22. a4
{[%clk 0:02:11.3]} 22... Rc5 {[%clk 0:00:38.8]} 23. Rxc5 {[%clk 0:02:10.2]}
23... bxc5 {[%clk 0:00:39]} 24. Nxa7 {[%clk 0:02:04.3]} 24... Bxg2 {[%clk
0:00:33.6]} 25. Bxg2 {[%clk 0:02:05.2]} 25... Qxa7 {[%clk 0:00:33.8]} 26. Qe3
{[%clk 0:01:59.6]} 26... Nh5 {[%clk 0:00:20.2]} 27. Bxg7 {[%clk 0:01:55.4]}
27... Nxg7 {[%clk 0:00:20.5]} 28. b4 {[%clk 0:01:43.9]} 28... Qxa4 {[%clk
0:00:20.2]} 29. Qxc5 {[%clk 0:01:44.3]} 29... Nf5 {[%clk 0:00:13.4]} 30. Be4
{[%clk 0:01:34.7]} 30... Nd6 {[%clk 0:00:12.8]} 31. Kg2 {[%clk 0:01:28.4]} 31...
Qb3 {[%clk 0:00:07.5]} 32. Qd4 {[%clk 0:01:27.6]} 32... Nxe4 {[%clk 0:00:03.8]}
33. dxe4 {[%clk 0:01:27.8]} 33... h5 {[%clk 0:00:03]} 34. Qd8+ {[%clk
0:01:26.6]} 34... Kg7 {[%clk 0:00:02.8]} 35. Qxe7 {[%clk 0:01:27.5]} 35... Qd3
{[%clk 0:00:01.4]} 36. Qe5+ {[%clk 0:01:26.9]} 1-0

[Event "Late-Titled-Tuesday-Blitz-March-19-2024"]
[Site "Chess.com"]
[Date "2024.03.19"]
[Round "6"]
[White "tolimachess"]
[Black "tarno17"]
[Result "1-0"]
[WhiteElo "2465"]
[BlackElo "2197"]
[TimeControl "180+1"]
[EndTime "15:04:19 PDT"]
[Termination "tolimachess won by resignation"]

1. e4 {[%clk 0:02:57.3]} 1... c5 {[%clk 0:02:59.4]} 2. Nf3 {[%clk 0:02:53.5]}
2... e6 {[%clk 0:02:59.1]} 3. d4 {[%clk 0:02:52.2]} 3... cxd4 {[%clk 0:02:58.2]}
4. Nxd4 {[%clk 0:02:53.1]} 4... a6 {[%clk 0:02:57.8]} 5. c4 {[%clk 0:02:47.4]}
5... Nf6 {[%clk 0:02:55.8]} 6. Nc3 {[%clk 0:02:47.7]} 6... Bb4 {[%clk
0:02:55.9]} 7. Qf3 {[%clk 0:02:37.2]} 7... Qc7 {[%clk 0:02:34.2]} 8. Bd2 {[%clk
0:02:31.5]} 8... Nc6 {[%clk 0:02:28.8]} 9. Nxc6 {[%clk 0:02:25]} 9... dxc6
{[%clk 0:02:29.2]} 10. a3 {[%clk 0:02:21.3]} 10... Be7 {[%clk 0:02:10.8]} 11.
Qg3 {[%clk 0:02:11.7]} 11... Qxg3 {[%clk 0:02:07.8]} 12. hxg3 {[%clk 0:02:12.6]}
12... e5 {[%clk 0:02:03.1]} 13. f4 {[%clk 0:02:10.2]} 13... Bc5 {[%clk
0:01:40.1]} 14. Be2 {[%clk 0:02:06.7]} 14... Bd4 {[%clk 0:01:15.6]} 15. f5
{[%clk 0:01:54]} 15... b5 {[%clk 0:01:03.8]} 16. g4 {[%clk 0:01:48.5]} 16... Bb7
{[%clk 0:00:43.2]} 17. g5 {[%clk 0:01:46.6]} 17... Bxc3 {[%clk 0:00:27.3]} 18.
Bxc3 {[%clk 0:01:43.2]} 18... Nxe4 {[%clk 0:00:27.7]} 19. Bxe5 {[%clk
0:01:43.2]} 19... Nxg5 {[%clk 0:00:27.6]} 20. Bxg7 {[%clk 0:01:42.9]} 20... Rg8
{[%clk 0:00:27.5]} 21. f6 {[%clk 0:01:35.6]} 21... O-O-O {[%clk 0:00:19.1]} 22.
Rh5 {[%clk 0:01:35.1]} 22... Ne6 {[%clk 0:00:14.8]} 23. Rxh7 {[%clk 0:01:27.1]}
23... Nd4 {[%clk 0:00:15.1]} 24. Bg4+ {[%clk 0:01:26]} 24... Kb8 {[%clk
0:00:14.6]} 25. O-O-O {[%clk 0:01:24]} 25... Nb3+ {[%clk 0:00:11.2]} 26. Kc2
{[%clk 0:01:24.2]} 26... bxc4 {[%clk 0:00:11.3]} 27. Rxd8+ {[%clk 0:01:22.9]}
27... Rxd8 {[%clk 0:00:12.2]} 28. Bh6 {[%clk 0:01:20.8]} 28... c5 {[%clk
0:00:09.3]} 29. Bf4+ {[%clk 0:01:20.5]} 29... Ka8 {[%clk 0:00:07.8]} 30. Rxf7
{[%clk 0:01:21.1]} 30... Be4+ {[%clk 0:00:07]} 31. Kc3 {[%clk 0:01:21.3]} 31...
Na5 {[%clk 0:00:01.6]} 32. Be2 {[%clk 0:01:16.4]} 32... Rb8 {[%clk 0:00:01.8]}
33. Bxb8 {[%clk 0:01:15.9]} 33... Kxb8 {[%clk 0:00:01.9]} 34. Re7 {[%clk
0:01:16.5]} 34... Bd5 {[%clk 0:00:01.9]} 35. f7 {[%clk 0:01:16.2]} 1-0

[Event "Late-Titled-Tuesday-Blitz-March-19-2024"]
[Site "Chess.com"]
[Date "2024.03.19"]
[Round "6"]
[White "esteban062000"]
[Black "Burgsvik"]
[Result "0-1"]
[WhiteElo "2143"]
[BlackElo "2289"]
[TimeControl "180+1"]
[EndTime "15:04:21 PDT"]
[Termination "Burgsvik won by resignation"]

1. e4 {[%clk 0:03:00.9]} 1... c5 {[%clk 0:02:59.7]} 2. Nf3 {[%clk 0:02:57.1]}
2... Nc6 {[%clk 0:03:00]} 3. d4 {[%clk 0:02:54.4]} 3... cxd4 {[%clk 0:03:00.9]}
4. Nxd4 {[%clk 0:02:54.2]} 4... Nf6 {[%clk 0:03:01.5]} 5. Nc3 {[%clk 0:02:54.1]}
5... e5 {[%clk 0:03:01.5]} 6. Ndb5 {[%clk 0:02:52.9]} 6... d6 {[%clk 0:03:01.7]}
7. Bg5 {[%clk 0:02:52.2]} 7... a6 {[%clk 0:03:01.7]} 8. Na3 {[%clk 0:02:52.6]}
8... b5 {[%clk 0:03:02.6]} 9. Nd5 {[%clk 0:02:49.8]} 9... Be7 {[%clk 0:03:02.6]}
10. Nxe7 {[%clk 0:02:49.2]} 10... Nxe7 {[%clk 0:03:01.5]} 11. Bd3 {[%clk
0:02:44.3]} 11... Bb7 {[%clk 0:02:59.9]} 12. Qe2 {[%clk 0:02:37.3]} 12... Nc6
{[%clk 0:02:55.9]} 13. c3 {[%clk 0:02:31.1]} 13... h6 {[%clk 0:02:52.5]} 14. Bh4
{[%clk 0:02:30.2]} 14... g5 {[%clk 0:02:51.9]} 15. Bg3 {[%clk 0:02:29.9]} 15...
Ne7 {[%clk 0:02:50.6]} 16. Rd1 {[%clk 0:02:22.9]} 16... Ng6 {[%clk 0:02:37.2]}
17. h4 {[%clk 0:01:32.5]} 17... g4 {[%clk 0:02:28.8]} 18. h5 {[%clk 0:01:24.7]}
18... Nf4 {[%clk 0:02:24.3]} 19. Bxf4 {[%clk 0:01:22.7]} 19... exf4 {[%clk
0:02:24.2]} 20. e5 {[%clk 0:01:14]} 20... f3 {[%clk 0:02:06.4]} 21. Qe3 {[%clk
0:00:57.1]} 21... Nd5 {[%clk 0:02:02.4]} 22. Qe4 {[%clk 0:00:35.3]} 22... fxg2
{[%clk 0:01:54.4]} 23. Qxg2 {[%clk 0:00:30.2]} 23... Qg5 {[%clk 0:01:29.3]} 24.
exd6 {[%clk 0:00:17.1]} 24... O-O {[%clk 0:01:27.5]} 25. O-O {[%clk 0:00:11.6]}
25... Qxh5 {[%clk 0:01:15]} 26. Qg3 {[%clk 0:00:06.4]} 26... Nf4 {[%clk
0:01:10.8]} 27. f3 {[%clk 0:00:06.1]} 27... Nh3+ {[%clk 0:01:07.1]} 28. Kg2
{[%clk 0:00:06.3]} 28... f5 {[%clk 0:01:04]} 29. c4 {[%clk 0:00:04.2]} 29... f4
{[%clk 0:01:03.6]} 30. Qxg4+ {[%clk 0:00:02.9]} 30... Qxg4+ {[%clk 0:01:03.4]}
0-1

[Event "Late-Titled-Tuesday-Blitz-March-19-2024"]
[Site "Chess.com"]
[Date "2024.03.19"]
[Round "6"]
[White "shirovin"]
[Black "ThaBarWa"]
[Result "0-1"]
[WhiteElo "2043"]
[BlackElo "2342"]
[TimeControl "180+1"]
[EndTime "15:04:25 PDT"]
[Termination "ThaBarWa won by checkmate"]

1. d4 {[%clk 0:03:00.9]} 1... Nf6 {[%clk 0:02:51.1]} 2. Bf4 {[%clk 0:02:58.5]}
2... d6 {[%clk 0:02:44.9]} 3. Nc3 {[%clk 0:02:53.4]} 3... Nbd7 {[%clk 0:02:27]}
4. Nf3 {[%clk 0:02:51.2]} 4... g6 {[%clk 0:02:24.9]} 5. e4 {[%clk 0:02:49.5]}
5... Bg7 {[%clk 0:02:21.7]} 6. Qd2 {[%clk 0:02:47.6]} 6... O-O {[%clk 0:02:16]}
7. h4 {[%clk 0:02:46.4]} 7... c5 {[%clk 0:02:10.7]} 8. d5 {[%clk 0:02:36.1]}
8... b5 {[%clk 0:02:05.1]} 9. Bxb5 {[%clk 0:02:22.1]} 9... Qa5 {[%clk
0:02:01.4]} 10. Bd3 {[%clk 0:02:02]} 10... Rb8 {[%clk 0:01:46.7]} 11. Bh6 {[%clk
0:01:57.3]} 11... Rxb2 {[%clk 0:01:31.4]} 12. Bxg7 {[%clk 0:01:50.5]} 12... Kxg7
{[%clk 0:01:31.5]} 13. h5 {[%clk 0:01:38.6]} 13... Kg8 {[%clk 0:01:23]} 14. hxg6
{[%clk 0:01:30.7]} 14... fxg6 {[%clk 0:01:23.1]} 15. Ng5 {[%clk 0:01:12.5]}
15... Ne5 {[%clk 0:01:18.8]} 16. Ne6 {[%clk 0:00:56.3]} 16... Bxe6 {[%clk
0:01:07.7]} 17. dxe6 {[%clk 0:00:55]} 17... Nfg4 {[%clk 0:01:08.1]} 18. O-O
{[%clk 0:00:39.7]} 18... c4 {[%clk 0:00:47]} 19. Be2 {[%clk 0:00:38]} 19... Nxf2
{[%clk 0:00:41.6]} 20. Rxf2 {[%clk 0:00:35.9]} 20... Qc5 {[%clk 0:00:42.3]} 21.
Bf1 {[%clk 0:00:35]} 21... Ng4 {[%clk 0:00:41.2]} 22. Na4 {[%clk 0:00:30.4]}
22... Rxf2 {[%clk 0:00:38.7]} 23. Qd1 {[%clk 0:00:20.4]} 23... Rxf1+ {[%clk
0:00:36.3]} 24. Kxf1 {[%clk 0:00:19]} 24... Qf2# {[%clk 0:00:37.2]} 0-1

[Event "Late-Titled-Tuesday-Blitz-March-19-2024"]
[Site "Chess.com"]
[Date "2024.03.19"]
[Round "6"]
[White "lluiss"]
[Black "esrosenberg"]
[Result "0-1"]
[WhiteElo "2267"]
[BlackElo "2484"]
[TimeControl "180+1"]
[EndTime "15:04:29 PDT"]
[Termination "esrosenberg won on time"]

1. Nf3 {[%clk 0:03:00.9]} 1... d5 {[%clk 0:02:59.9]} 2. d4 {[%clk 0:03:00.3]}
2... Bf5 {[%clk 0:02:59.9]} 3. c4 {[%clk 0:03:00.5]} 3... e6 {[%clk 0:03:00.1]}
4. Qb3 {[%clk 0:02:57.2]} 4... Nc6 {[%clk 0:03:00.4]} 5. Bd2 {[%clk 0:02:57.3]}
5... Rb8 {[%clk 0:02:59.9]} 6. Nc3 {[%clk 0:02:54.9]} 6... Nf6 {[%clk
0:02:56.2]} 7. cxd5 {[%clk 0:02:44.1]} 7... exd5 {[%clk 0:02:56.1]} 8. Ne5
{[%clk 0:02:32.3]} 8... Be7 {[%clk 0:02:16]} 9. e3 {[%clk 0:01:52.5]} 9... O-O
{[%clk 0:02:11.4]} 10. Bb5 {[%clk 0:01:51.9]} 10... Na5 {[%clk 0:01:55.1]} 11.
Qd1 {[%clk 0:01:38.6]} 11... c6 {[%clk 0:01:55.4]} 12. Be2 {[%clk 0:01:32.2]}
12... Nd7 {[%clk 0:01:31.2]} 13. Nxd7 {[%clk 0:01:21.3]} 13... Bxd7 {[%clk
0:01:31.4]} 14. O-O {[%clk 0:01:21]} 14... Nc4 {[%clk 0:01:28.6]} 15. Bxc4
{[%clk 0:01:10.3]} 15... dxc4 {[%clk 0:01:29.5]} 16. Qe2 {[%clk 0:01:02.9]}
16... b5 {[%clk 0:01:29.5]} 17. e4 {[%clk 0:00:58.7]} 17... a6 {[%clk
0:01:29.8]} 18. e5 {[%clk 0:00:55.7]} 18... Be6 {[%clk 0:01:26.7]} 19. Rad1
{[%clk 0:00:53]} 19... Qxd4 {[%clk 0:01:19.6]} 20. Bg5 {[%clk 0:00:30.3]} 20...
Qa7 {[%clk 0:01:19.8]} 21. Bxe7 {[%clk 0:00:28.4]} 21... Qxe7 {[%clk 0:01:19.8]}
22. Ne4 {[%clk 0:00:28.7]} 22... Bf5 {[%clk 0:01:16.2]} 23. Nd6 {[%clk
0:00:26.1]} 23... Bd3 {[%clk 0:01:16.4]} 24. Qe3 {[%clk 0:00:22.5]} 24... Bxf1
{[%clk 0:01:13.7]} 25. Rxf1 {[%clk 0:00:22.6]} 25... Rbd8 {[%clk 0:01:12.9]} 26.
Qf4 {[%clk 0:00:17.5]} 26... Qe6 {[%clk 0:01:09.3]} 27. Nf5 {[%clk 0:00:12.3]}
27... Rfe8 {[%clk 0:01:01.9]} 28. Re1 {[%clk 0:00:09.2]} 28... Qxe5 {[%clk
0:00:56.1]} 0-1